fUST/lending_fUST_20250707
["ID","MTS","AMOUNT","RATE_DAILY","PERIOD"]
[370076892,1751874727967,-833.33,0.00021466,2]
[370076893,1751874727977,-460.0,0.00021466,2]
[370076894,1751874727987,-479.16,0.00021466,2]
[370076895,1751874727996,-460.0,0.00021466,2]
[370076896,1751874728006,-789.93,0.00021466,2]
[370076897,1751874728015,-567.3939513,0.00021466,2]
[370076898,1751874728025,-460.0,0.00021466,2]
[370076899,1751874728034,-460.0,0.00021466,2]
[370076900,1751874728044,-460.0,0.00021466,2]
[370076901,1751874728054,-460.0,0.00021466,2]
[370076902,1751874728064,-1358.8,0.00021466,2]
[370076903,1751874728073,-460.0,0.00021466,2]
[370076904,1751874728083,-460.0,0.00021466,2]
[370076905,1751874728093,-474.49,0.00021466,2]
[370076906,1751874728102,-1067.63,0.00021466,2]
[370076907,1751874728112,-484.4,0.00021466,2]
[370076908,1751874728122,-636.05,0.00021466,2]
[370076909,1751874728132,-460.0,0.00021466,2]
[370076910,1751874728142,-460.0,0.00021466,2]
[370076911,1751874728151,-460.0,0.00021466,2]
[370076912,1751874728160,-460.0,0.00021466,2]
[370076913,1751874728170,-290.15,0.00021466,2]
[370076914,1751874728179,-460.0,0.00021466,2]
[370076915,1751874728188,-460.0,0.00021466,2]
[370076916,1751874728198,-460.0,0.00021466,2]
[370076917,1751874728208,-460.0,0.00021466,2]
[370076918,1751874728221,-1217.52,0.00021466,2]
[370076919,1751874728232,-460.0,0.00021466,2]
[370076920,1751874728242,-598.99,0.00021466,2]
[370076921,1751874728252,-460.0,0.00021466,2]
[370076922,1751874728262,-460.0,0.00021466,2]
[370076923,1751874728272,-460.0,0.00021466,2]
[370076924,1751874728282,-460.0,0.00021466,2]
[370076925,1751874728292,-460.44,0.00021466,2]
[370076926,1751874728302,-460.0,0.00021466,2]
[370076927,1751874728312,-296.57831116,0.00021466,2]
[370076928,1751874728321,-460.0,0.00021466,2]
[370076929,1751874728333,-460.0,0.00021466,2]
[370076930,1751874728343,-460.0,0.00021466,2]
[370076931,1751874728352,-460.0,0.00021466,2]
[370076932,1751874728362,-568.83,0.00021466,2]
[370076933,1751874728372,-460.0,0.00021466,2]
[370076934,1751874728383,-460.0,0.00021466,2]
[370076935,1751874728395,-460.0,0.00021466,2]
[370076936,1751874728405,-1142.62,0.00021466,2]
[370076937,1751874728416,-3875.46,0.00021466,2]
[370076938,1751874728428,-460.0,0.00021466,2]
[370076939,1751874728439,-484.93,0.00021466,2]
[370076940,1751874728450,-460.0,0.00021466,2]
[370076941,1751874728462,-661.69,0.00021466,2]
[370076942,1751874728473,-460.0,0.00021466,2]
[370076943,1751874728484,-460.0,0.00021466,2]
[370076944,1751874728495,-165.58140979,0.00021466,2]
[370076945,1751874728504,-460.0,0.00021466,2]
[370076946,1751874728514,-3246.94,0.00021466,2]
[370076947,1751874728525,-503.41,0.00021466,2]
[370076948,1751874728535,-499.04,0.00021466,2]
[370076949,1751874728545,-460.0,0.00021466,2]
[370076950,1751874728554,-460.0,0.00021466,2]
[370076951,1751874728564,-2096.65,0.00021466,2]
[370076952,1751874728574,-460.0,0.00021466,2]
[370076953,1751874728585,-503.05,0.00021466,2]
[370076954,1751874728594,-460.0,0.00021466,2]
[370076955,1751874728605,-460.0,0.00021468,2]
[370076956,1751874728615,-460.0,0.00021468,2]
[370076957,1751874728627,-1143.07,0.00021468,2]
[370076958,1751874728637,-460.0,0.00021468,2]
[370076959,1751874728646,-460.0,0.00021468,2]
[370076960,1751874728655,-460.0,0.00021468,2]
[370076961,1751874728666,-460.0,0.00021468,2]
[370076962,1751874728676,-460.0,0.00021468,2]
[370076963,1751874728686,-460.0,0.00021468,2]
[370076964,1751874728695,-460.0,0.00021468,2]
[370076965,1751874728705,-210.77,0.00021468,2]
[370076966,1751874728714,-904.25,0.00021468,2]
[370076967,1751874728724,-364.08,0.00021468,2]
[370076968,1751874728734,-460.0,0.00021468,2]
[370076969,1751874728744,-460.0,0.00021468,2]
[370076970,1751874728754,-460.0,0.00021468,2]
[370076971,1751874728763,-356.03,0.00021469,2]
[370076972,1751874728773,-460.0,0.00021469,2]
[370076973,1751874728783,-590.2820337,0.00021469,2]
[370076974,1751874728792,-471.71,0.00021469,2]
[370076975,1751874728802,-460.0,0.00021469,2]
[370076976,1751874728812,-460.0,0.00021469,2]
[370076977,1751874728821,-460.0,0.00021469,2]
[370076978,1751874728830,-1952.44731812,0.00021486,5]
[370076979,1751874728840,-500.0,0.00021527,2]
[370076980,1751874728851,-256334.34,0.00021542,10]
[370076981,1751874728860,-150.0,0.0002162,2]
[370076982,1751874728869,-316.6,0.00021711,4]
[370076983,1751874728880,-516.51,0.00021735,2]
[370076984,1751874728890,-502.13,0.00021735,2]
[370076985,1751874728900,-460.0,0.00021735,2]
[370076986,1751874728911,-5847.9,0.00021735,2]
[370076987,1751874728920,-462.21,0.00021736,2]
[370076988,1751874728929,-460.0,0.00021736,2]
[370076989,1751874728940,-3915.6,0.00021736,2]
[370076990,1751874728949,-598.2,0.00021736,2]
[370076991,1751874728959,-2220.21,0.00021736,2]
[370076992,1751874728968,-596.4,0.00021736,2]
[370076993,1751874728978,-791.73,0.00021736,2]
[370076994,1751874728987,-224.84,0.00021736,2]
[370076995,1751874728996,-500.96,0.00021736,2]
[370076996,1751874729006,-460.0,0.00021736,2]
[370076997,1751874729016,-908.31,0.00021736,2]
[370076998,1751874729026,-3498.14,0.00021736,2]
[370076999,1751874729035,-7001.38,0.00021736,2]
[370077000,1751874729045,-802.05,0.00021736,2]
[370077001,1751874729055,-460.0,0.00021736,2]
[370077002,1751874729065,-2963.68,0.00021736,2]
[370077003,1751874729077,-960.04,0.00021736,2]
[370077004,1751874729088,-515.59,0.00021736,2]
[370077005,1751874729099,-1138.73,0.00021736,2]
[370077006,1751874729110,-460.0,0.00021737,2]
[370077007,1751874729121,-460.0,0.00021737,2]
[370077008,1751874729130,-460.0,0.00021737,2]
[370077009,1751874729140,-460.0,0.00021737,2]
[370077010,1751874729149,-460.0,0.00021737,2]
[370077011,1751874729161,-465.67,0.00021737,2]
[370077012,1751874729172,-460.0,0.00021737,2]
[370077013,1751874729182,-460.0,0.00021737,2]
[370077014,1751874729193,-460.0,0.00021737,2]
[370077015,1751874729203,-460.0,0.00021737,2]
[370077016,1751874729215,-460.0,0.00021737,2]
[370077017,1751874729230,-460.0,0.00021737,2]
[370077018,1751874729239,-460.0,0.00021737,2]
[370077019,1751874729249,-460.0,0.00021737,2]
[370077020,1751874729261,-800.94,0.00021737,2]
[370077021,1751874729271,-1010.27,0.00021737,2]
[370077022,1751874729282,-286.76856089,0.00021738,2]
[370077023,1751874729293,-545.09,0.00021738,2]
[370077024,1751874729305,-465.51235057,0.00021738,2]
[370077025,1751874729315,-460.0,0.00021738,2]
[370077026,1751874729536,-595.03,0.00021738,2]
[370077027,1751874729546,-460.0,0.00021738,2]
[370077028,1751874729556,-460.0,0.00021738,2]
[370077029,1751874729566,-523.96660531,0.00021738,2]
[370077030,1751874729575,-460.0,0.00021738,2]
[370077031,1751874729585,-853.89,0.00021738,2]
[370077032,1751874729595,-442.02,0.00021738,2]
[370077033,1751874729604,-653.05,0.00021738,2]
[370077034,1751874729614,-1467.27,0.00021738,2]
[370077035,1751874729624,-460.0,0.00021738,2]
[370077036,1751874729634,-460.0,0.00021738,2]
[370077037,1751874729643,-558.67,0.00021738,2]
[370077038,1751874729652,-496.33,0.00021738,2]
[370077039,1751874729662,-1277.64,0.00021738,2]
[370077040,1751874729672,-875.52,0.00021738,2]
[370077041,1751874729682,-1859.47,0.00021738,2]
[370077042,1751874729691,-460.0,0.00021738,2]
[370077043,1751874729702,-460.0,0.00021738,2]
[370077044,1751874729711,-667.38,0.00021738,2]
[370077045,1751874729721,-462.72,0.00021738,2]
[370077046,1751874729730,-476.25,0.00021739,2]
[370077047,1751874729740,-460.0,0.00021739,2]
[370077048,1751874729749,-536.66,0.00021739,2]
[370077049,1751874729759,-487.81,0.00021739,2]
[370077050,1751874729769,-1189.7,0.00021739,2]
[370077051,1751874729778,-1405.47,0.00021739,2]
[370077052,1751874729788,-470.64,0.00021739,2]
[370077053,1751874729797,-1319.88,0.00021739,2]
[370077054,1751874729806,-760.73,0.00021739,2]
[370077055,1751874729816,-1793.32,0.00021739,2]
[370077056,1751874729828,-460.0,0.00021739,2]
[370077057,1751874729837,-460.0,0.00021739,2]
[370077058,1751874729847,-235.87,0.00021739,2]
[370077059,1751874729857,-801.02,0.00021739,2]
[370077060,1751874729866,-484.77,0.00021739,2]
[370077061,1751874729876,-460.0,0.00021739,2]
[370077062,1751874729885,-485.52,0.00021739,2]
[370077063,1751874729895,-9292.4,0.00021739,2]
[370077064,1751874729904,-752.99,0.00021739,2]
[370077065,1751874729914,-2399.68,0.00021739,2]
[370077066,1751874729923,-460.0,0.00021739,2]
[370077067,1751874729933,-1940.76,0.00021739,2]
[370077068,1751874729942,-460.0,0.00021739,2]
[370077069,1751874729952,-1002.05,0.00021739,2]
[370077070,1751874729961,-1775.53,0.00021739,2]
[370077071,1751874729970,-833.33,0.0002174,2]
[370077072,1751874729980,-469.89654981,0.0002174,2]
[370077073,1751874729989,-479.16,0.0002174,2]
[370077074,1751874729999,-460.0,0.0002174,2]
[370077075,1751874730008,-789.93,0.0002174,2]
[370077076,1751874730017,-460.0,0.0002174,2]
[370077077,1751874730026,-352.8,0.0002174,2]
[370077078,1751874730036,-460.0,0.0002174,2]
[370077079,1751874730045,-460.0,0.0002174,2]
[370077080,1751874730054,-1358.8,0.0002174,2]
[370077081,1751874730064,-460.0,0.0002174,2]
[370077082,1751874730073,-460.0,0.0002174,2]
[370077083,1751874730084,-474.49,0.0002174,2]
[370077084,1751874730093,-1067.63,0.0002174,2]
[370077085,1751874730103,-636.05,0.0002174,2]
[370077086,1751874730112,-484.4,0.0002174,2]
[370077087,1751874730121,-460.0,0.0002174,2]
[370077088,1751874730130,-461.15,0.0002174,2]
[370077089,1751874730139,-460.0,0.0002174,2]
[370077090,1751874730150,-485.15,0.0002174,2]
[370077091,1751874730160,-460.0,0.0002174,2]
[370077092,1751874730169,-460.0,0.0002174,2]
[370077093,1751874730179,-460.0,0.0002174,2]
[370077094,1751874730188,-460.0,0.0002174,2]
[370077095,1751874730198,-1217.52,0.0002174,2]
[370077096,1751874730207,-460.0,0.0002174,2]
[370077097,1751874730217,-598.99,0.0002174,2]
[370077098,1751874730233,-460.0,0.0002174,2]
[370077099,1751874730243,-460.0,0.0002174,2]
[370077100,1751874730252,-460.0,0.0002174,2]
[370077101,1751874730261,-460.0,0.0002174,2]
[370077102,1751874730273,-460.44,0.0002174,2]
[370077103,1751874730283,-460.0,0.0002174,2]
[370077104,1751874730292,-460.0,0.0002174,2]
[370077105,1751874730301,-460.0,0.0002174,2]
[370077106,1751874730312,-460.0,0.0002174,2]
[370077107,1751874730322,-465.7104665,0.0002174,2]
[370077108,1751874730332,-568.83,0.0002174,2]
[370077109,1751874730341,-460.0,0.0002174,2]
[370077110,1751874730351,-460.0,0.0002174,2]
[370077111,1751874730360,-460.0,0.0002174,2]
[370077112,1751874730551,-1142.62,0.0002174,2]
[370077113,1751874730561,-3875.46,0.0002174,2]
[370077114,1751874730571,-460.0,0.0002174,2]
[370077115,1751874730580,-484.93,0.0002174,2]
[370077116,1751874730590,-460.0,0.0002174,2]
[370077117,1751874730599,-661.69,0.0002174,2]
[370077118,1751874730608,-460.0,0.0002174,2]
[370077119,1751874730618,-460.0,0.0002174,2]
[370077120,1751874730629,-460.0,0.0002174,2]
[370077121,1751874730639,-3246.94,0.0002174,2]
[370077122,1751874730649,-503.41,0.0002174,2]
[370077123,1751874730659,-479.46,0.0002174,2]
[370077124,1751874730671,-499.04,0.0002174,2]
[370077125,1751874730681,-460.0,0.0002174,2]
[370077126,1751874730693,-2096.65,0.0002174,2]
[370077127,1751874730703,-460.0,0.0002174,2]
[370077128,1751874730713,-503.05,0.0002174,2]
[370077129,1751874730723,-460.0,0.0002174,2]
[370077130,1751874730732,-460.0,0.00021742,2]
[370077131,1751874730742,-460.0,0.00021742,2]
[370077132,1751874730752,-1143.07,0.00021742,2]
[370077133,1751874730761,-460.0,0.00021742,2]
[370077134,1751874730771,-460.0,0.00021742,2]
[370077135,1751874730780,-460.0,0.00021742,2]
[370077136,1751874730790,-460.0,0.00021742,2]
[370077137,1751874730799,-460.0,0.00021742,2]
[370077138,1751874730809,-460.0,0.00021742,2]
[370077139,1751874730819,-904.25,0.00021742,2]
[370077140,1751874730829,-460.0,0.00021742,2]
[370077141,1751874730839,-460.0,0.00021742,2]
[370077142,1751874730848,-460.0,0.00021742,2]
[370077143,1751874730858,-321.53306818,0.00021743,2]
[370077144,1751874730867,-471.71,0.00021743,2]
[370077145,1751874730877,-460.0,0.00021743,2]
[370077146,1751874730886,-460.0,0.00021743,2]
[370077147,1751874730898,-460.0,0.00021743,2]
[370077148,1751874730908,-151.0,0.00021744,2]
[370077149,1751874730918,-517.499024,0.00021744,2]
[370077150,1751874730928,-517.499024,0.00021744,2]
[370077151,1751874730938,-151.0,0.00021744,2]
[370077152,1751874730949,-1952.44731812,0.00021762,5]
[370077153,1751874730959,-4220.1822831,0.00021763,2]
[370077154,1751874730969,-223.72,0.0002181,2]
[370077155,1751874730979,-250.806694,0.00021842,2]
[370077156,1751874730989,-12206.83125438,0.00021878,2]
[370077157,1751874731000,-2740.94,0.000219,2]
[370077158,1751874731010,-823.0,0.00021907,2]
[370077159,1751874731020,-150.0,0.00021918,2]
[370077160,1751874731030,-150.0,0.00021918,2]
[370077161,1751874731040,-150.0,0.00021918,2]
[370077162,1751874731050,-500.0,0.00021918,2]
[370077163,1751874731060,-500.0,0.00021918,2]
[370077164,1751874731071,-548.02441312,0.00021918,2]
[370077165,1751874731081,-500.0,0.00021918,2]
[370077166,1751874731094,-500.0,0.00021918,2]
[370077167,1751874731103,-500.0,0.00021918,2]
[370077168,1751874731113,-500.0,0.00021918,2]
[370077169,1751874731123,-500.0,0.00021918,2]
[370077170,1751874731133,-158.86129796,0.00022,10]
[370077171,1751874731144,-120391.69,0.00022,2]
[370077172,1751874731154,-53889.05,0.00022,7]
[370077173,1751874731164,-3600.55,0.00022,7]
[370077174,1751874731173,-160.0,0.00022,7]
[370077175,1751874731183,-151.0,0.00022,7]
[370077176,1751874731193,-151.0,0.00022,7]
[370077177,1751874731202,-170.968478,0.00022,7]
[370077178,1751874731212,-151.0,0.00022,7]
[370077179,1751874731221,-151.0,0.00022,7]
[370077180,1751874731237,-19304.92342271,0.00022,2]
[370077181,1751874731247,-352.20133888,0.00022,2]
[370077182,1751874731256,-20120.40074165,0.00022,2]
[370077183,1751874731266,-549.71718887,0.00022,2]
[370077184,1751874731275,-54950.35579715,0.00022,2]
[370077185,1751874731286,-152.515445,0.00022,7]
[370077186,1751874731295,-196.555937,0.00022,7]
[370077187,1751874731305,-196.555937,0.00022,7]
[370077188,1751874731315,-151.0,0.00022,7]
[370077189,1751874731325,-244.38574,0.00022,7]
[370077190,1751874731335,-244.38574,0.00022,7]
[370077191,1751874731344,-151.0,0.00022,7]
[370077192,1751874731355,-151.0,0.00022,7]
[370077193,1751874731366,-12584.46609586,0.00022,7]
[370077194,1751874731377,-848.27993403,0.00022,7]
[370077195,1751874731389,-214.06929976,0.00022,7]
[370077196,1751874731400,-150.0,0.00022,2]
[370077197,1751874731410,-524.98484073,0.00022,7]
[370077198,1751874731420,-160.0,0.00022,7]
[370077199,1751874731430,-516.51,0.00022009,2]
[370077200,1751874731442,-502.13,0.00022009,2]
[370077201,1751874731452,-460.0,0.00022009,2]
[370077202,1751874731462,-5847.9,0.00022009,2]
[370077203,1751874731474,-462.21,0.0002201,2]
[370077204,1751874731484,-3915.6,0.0002201,2]
[370077205,1751874731493,-598.2,0.0002201,2]
[370077206,1751874731505,-2220.21,0.0002201,2]
[370077207,1751874731514,-596.4,0.0002201,2]
[370077208,1751874731523,-791.73,0.0002201,2]
[370077209,1751874731533,-500.96,0.0002201,2]
[370077210,1751874731542,-317.8,0.0002201,2]
[370077211,1751874731552,-908.31,0.0002201,2]
[370077212,1751874731561,-3498.14,0.0002201,2]
[370077213,1751874731571,-7001.38,0.0002201,2]
[370077214,1751874731581,-802.05,0.0002201,2]
[370077215,1751874731591,-323.34,0.0002201,2]
[370077216,1751874731600,-2963.68,0.0002201,2]
[370077217,1751874731610,-960.04,0.0002201,2]
[370077218,1751874731619,-515.59,0.0002201,2]
[370077219,1751874731628,-1138.73,0.0002201,2]
[370077220,1751874731638,-460.0,0.00022011,2]
[370077221,1751874731648,-460.0,0.00022011,2]
[370077222,1751874731657,-460.0,0.00022011,2]
[370077223,1751874731667,-460.0,0.00022011,2]
[370077224,1751874731676,-460.0,0.00022011,2]
[370077225,1751874731685,-460.0,0.00022011,2]
[370077226,1751874731695,-460.0,0.00022011,2]
[370077227,1751874731704,-474.37,0.00022011,2]
[370077228,1751874731714,-800.94,0.00022011,2]
[370077229,1751874731724,-1010.27,0.00022011,2]
[370077230,1751874731733,-545.09,0.00022012,2]
[370077231,1751874731743,-460.0,0.00022012,2]
[370077232,1751874731752,-595.03,0.00022012,2]
[370077233,1751874731762,-460.0,0.00022012,2]
[370077234,1751874731771,-460.0,0.00022012,2]
[370077235,1751874731780,-460.0,0.00022012,2]
[370077236,1751874731789,-853.89,0.00022012,2]
[370077237,1751874731798,-653.05,0.00022012,2]
[370077238,1751874731808,-1467.27,0.00022012,2]
[370077239,1751874731817,-460.0,0.00022012,2]
[370077240,1751874731827,-460.0,0.00022012,2]
[370077241,1751874731836,-558.67,0.00022012,2]
[370077242,1751874731846,-1277.64,0.00022012,2]
[370077243,1751874731855,-875.52,0.00022012,2]
[370077244,1751874731865,-1859.47,0.00022012,2]
[370077245,1751874731874,-460.00000001,0.00022012,2]
[370077246,1751874731885,-460.0,0.00022012,2]
[370077247,1751874731895,-667.38,0.00022012,2]
[370077248,1751874731904,-462.72,0.00022012,2]
[370077249,1751874731914,-476.25,0.00022013,2]
[370077250,1751874731923,-460.0,0.00022013,2]
[370077251,1751874731932,-536.66,0.00022013,2]
[370077252,1751874731942,-487.81,0.00022013,2]
[370077253,1751874731952,-1189.7,0.00022013,2]
[370077254,1751874731961,-1405.47,0.00022013,2]
[370077255,1751874731970,-470.64,0.00022013,2]
[370077256,1751874731980,-1319.88,0.00022013,2]
[370077257,1751874731989,-760.73,0.00022013,2]
[370077258,1751874731999,-1793.32,0.00022013,2]
[370077259,1751874732008,-460.0,0.00022013,2]
[370077260,1751874732018,-460.0,0.00022013,2]
[370077261,1751874732027,-801.02,0.00022013,2]
[370077262,1751874732036,-484.77,0.00022013,2]
[370077263,1751874732046,-227.79,0.00022013,2]
[370077264,1751874732055,-485.52,0.00022013,2]
[370077265,1751874732065,-9292.4,0.00022013,2]
[370077266,1751874732074,-752.99,0.00022013,2]
[370077267,1751874732084,-2399.68,0.00022013,2]
[370077268,1751874732097,-371.21,0.00022013,2]
[370077269,1751874732108,-1940.76,0.00022013,2]
[370077270,1751874732117,-460.0,0.00022013,2]
[370077271,1751874732127,-1002.05,0.00022013,2]
[370077272,1751874732136,-1775.53,0.00022013,2]
[370077273,1751874732145,-833.33,0.00022014,2]
[370077274,1751874732155,-479.16,0.00022014,2]
[370077275,1751874732164,-523.62610164,0.00022014,2]
[370077276,1751874732173,-789.93,0.00022014,2]
[370077277,1751874732183,-460.0,0.00022014,2]
[370077278,1751874732193,-460.0,0.00022014,2]
[370077279,1751874732202,-442.72,0.00022014,2]
[370077280,1751874732211,-1358.8,0.00022014,2]
[370077281,1751874732221,-164.16,0.00022014,2]
[370077282,1751874732235,-474.49,0.00022014,2]
[370077283,1751874732244,-1067.63,0.00022014,2]
[370077284,1751874732254,-636.05,0.00022014,2]
[370077285,1751874732263,-484.4,0.00022014,2]
[370077286,1751874732274,-326.73,0.00022014,2]
[370077287,1751874732283,-460.0,0.00022014,2]
[370077288,1751874732292,-460.0,0.00022014,2]
[370077289,1751874732302,-460.0,0.00022014,2]
[370077290,1751874732313,-220.33053849,0.00022014,2]
[370077291,1751874732323,-267.67471051,0.00022014,2]
[370077292,1751874732332,-1217.52,0.00022014,2]
[370077293,1751874732342,-460.0,0.00022014,2]
[370077294,1751874732351,-598.99,0.00022014,2]
[370077295,1751874732360,-460.0,0.00022014,2]
[370077296,1751874732369,-460.0,0.00022014,2]
[370077297,1751874732378,-460.0,0.00022014,2]
[370077298,1751874732387,-460.0,0.00022014,2]
[370077299,1751874732397,-460.44,0.00022014,2]
[370077300,1751874732406,-319.67200038,0.00022014,2]
[370077301,1751874732415,-460.0,0.00022014,2]
[370077302,1751874732424,-460.0,0.00022014,2]
[370077303,1751874732434,-460.0,0.00022014,2]
[370077304,1751874732444,-568.83,0.00022014,2]
[370077305,1751874732453,-460.0,0.00022014,2]
[370077306,1751874732463,-460.0,0.00022014,2]
[370077307,1751874732472,-460.0,0.00022014,2]
[370077308,1751874732481,-1142.62,0.00022014,2]
[370077309,1751874732491,-3875.46,0.00022014,2]
[370077310,1751874732500,-466.24631743,0.00022014,2]
[370077311,1751874732509,-484.93,0.00022014,2]
[370077312,1751874732519,-460.0,0.00022014,2]
[370077313,1751874732528,-661.69,0.00022014,2]
[370077314,1751874732538,-460.0,0.00022014,2]
[370077315,1751874732547,-460.0,0.00022014,2]
[370077316,1751874732556,-460.0,0.00022014,2]
[370077317,1751874732566,-3246.94,0.00022014,2]
[370077318,1751874732576,-503.41,0.00022014,2]
[370077319,1751874732586,-499.04,0.00022014,2]
[370077320,1751874732595,-460.0,0.00022014,2]
[370077321,1751874732605,-2096.65,0.00022014,2]
[370077322,1751874732615,-460.0,0.00022014,2]
[370077323,1751874732624,-503.05,0.00022014,2]
[370077324,1751874732637,-460.0,0.00022014,2]
[370077325,1751874732647,-460.0,0.00022016,2]
[370077326,1751874732658,-468.48,0.00022016,2]
[370077327,1751874732668,-1143.07,0.00022016,2]
[370077328,1751874732678,-460.0,0.00022016,2]
[370077329,1751874732687,-460.0,0.00022016,2]
[370077330,1751874732697,-460.0,0.00022016,2]
[370077331,1751874732707,-460.0,0.00022016,2]
[370077332,1751874732716,-454.61,0.00022016,2]
[370077333,1751874732726,-904.25,0.00022016,2]
[370077334,1751874732736,-263.81,0.00022016,2]
[370077335,1751874732745,-460.0,0.00022016,2]
[370077336,1751874732755,-471.66672409,0.00022016,2]
[370077337,1751874732764,-471.71,0.00022017,2]
[370077338,1751874732774,-460.0,0.00022017,2]
[370077339,1751874732783,-229.00591698,0.00022017,2]
[370077340,1751874732793,-161.22285108,0.00022017,2]
[370077341,1751874732802,-1952.44731812,0.00022038,6]
[370077342,1751874732812,-316.6,0.00022043,5]
[370077343,1751874732822,-500.0,0.00022138,2]
[370077344,1751874732832,-258077.08,0.00022147,10]
[370077345,1751874732842,-14620.77,0.00022147,10]
[370077346,1751874732852,-29401.16,0.00022147,10]
[370077347,1751874732862,-151.0,0.00022282,2]
[370077348,1751874732872,-151.0,0.00022282,2]
[370077349,1751874732881,-153.64489862,0.00022282,2]
[370077350,1751874732891,-151.0,0.00022282,2]
[370077351,1751874732900,-151.0,0.00022282,2]
[370077352,1751874732909,-151.0,0.00022282,2]
[370077353,1751874732918,-151.0,0.00022282,2]
[370077354,1751874732927,-151.0,0.00022282,2]
[370077355,1751874732937,-151.0,0.00022282,2]
[370077356,1751874732946,-151.0,0.00022282,2]
[370077357,1751874732956,-151.0,0.00022282,2]
[370077358,1751874732965,-151.0,0.00022282,2]
[370077359,1751874732975,-151.0,0.00022282,2]
[370077360,1751874732984,-151.0,0.00022282,2]
[370077361,1751874732994,-151.0,0.00022282,2]
[370077362,1751874733003,-151.0,0.00022282,2]
[370077363,1751874733011,-151.0,0.00022282,2]
[370077364,1751874733021,-151.0,0.00022282,2]
[370077365,1751874733030,-151.0,0.00022282,2]
[370077366,1751874733039,-151.0,0.00022282,2]
[370077367,1751874733049,-207.4,0.00022282,2]
[370077368,1751874733058,-690.642,0.00022282,2]
[370077369,1751874733068,-5000.0,0.00022282,2]
[370077370,1751874733077,-1500.0,0.00022282,2]
[370077371,1751874733087,-1500.0,0.00022282,2]
[370077372,1751874733096,-500.0,0.00022282,2]
[370077373,1751874733106,-280.00135279,0.00022282,2]
[370077374,1751874733115,-1500.0,0.00022282,2]
[370077375,1751874733125,-500.0,0.00022282,2]
[370077376,1751874733303,-1500.0,0.00022282,2]
[370077377,1751874733313,-500.0,0.00022282,2]
[370077378,1751874733323,-1500.0,0.00022282,2]
[370077379,1751874733333,-1500.0,0.00022282,2]
[370077380,1751874733343,-500.0,0.00022282,2]
[370077381,1751874733352,-500.0,0.00022282,2]
[370077382,1751874733362,-685.74869884,0.00022282,2]
[370077383,1751874733371,-1500.0,0.00022282,2]
[370077384,1751874733381,-500.0,0.00022282,2]
[370077385,1751874733390,-1500.0,0.00022282,2]
[370077386,1751874733400,-500.0,0.00022282,2]
[370077387,1751874733409,-1500.0,0.00022282,2]
[370077388,1751874733418,-500.0,0.00022282,2]
[370077389,1751874733428,-1500.0,0.00022282,2]
[370077390,1751874733437,-500.0,0.00022282,2]
[370077391,1751874733447,-1500.0,0.00022282,2]